bitfinex-derivatives/quotes_ETHF0:USTF0_20240920
["timestamp","ask_amount","ask_price","bid_price","bid_amount"]
[1726799711641,1.191,2452.5,2452.2,0.3945]
[1726799711957,10.7108,2453.1,2452.4,3.2078]
[1726799712145,10.7108,2453.1,2452.7,0.4076]
[1726799712146,0.40758,2452.9,2452.7,0.4076]
[1726799712343,0.40758,2452.9,2452.8,0.3931]
[1726799712556,0.79878,2452.9,2452.8,0.3931]
[1726799713257,0.79877,2452.9,2452.8,0.3931]
[1726799714147,3.2078,2453.1,2452.8,0.3931]
[1726799714452,0.791,2453.3,2453.0,0.40756]
[1726799714647,0.80089,2453.5,2453.1,0.3855]
[1726799714857,4.18289,2453.5,2453.2,0.3949]
[1726799715058,0.40749,2453.4,2453.2,0.3949]
[1726799715554,3.58749,2453.4,2453.2,0.3949]
[1726799715748,3.18,2453.4,2453.2,0.3949]
[1726799717162,3.58749,2453.4,2453.2,0.3949]
[1726799721255,3.2078,2453.3,2452.9,0.406]
[1726799721562,4.0048,2453.2,2452.8,1.22248]
[1726799721861,3.2078,2453.0,2452.8,0.8149]
[1726799722057,0.40757,2453.0,2452.8,0.8149]
[1726799722263,0.40757,2453.0,2452.5,1.06940119]
[1726799722264,3.18,2453.0,2452.5,1.06940119]
[1726799722567,0.4076,2452.8,2452.5,0.80723]
[1726799722866,0.4076,2452.8,2452.6,0.40762]
[1726799723167,0.4076,2452.8,2452.5,0.80723]
[1726799724661,0.4076,2452.8,2452.6,0.40762]
[1726799725565,3.58757,2453.0,2452.8,0.40758]
[1726799725768,3.2078,2453.1,2453.0,0.40756]
[1726799725959,3.5875,2453.4,2453.1,0.40753]
[1726799730169,0.40751,2453.3,2453.1,0.40753]
[1726799730662,3.18,2453.2,2452.9,0.8423]
[1726799730867,3.18,2453.0,2452.6,1.06940119]
[1726799731071,3.18,2452.8,2452.7,0.4126]
[1726799731457,0.40758,2452.9,2452.7,0.82021]
[1726799731759,3.58757,2453.0,2452.7,0.82021]
[1726799732077,0.40757,2452.9,2452.7,0.82021]
[1726799732766,3.18,2453.0,2452.8,0.40759]
[1726799732964,1.2485,2453.1,2452.8,0.40759]
[1726799733168,1.65606,2453.1,2452.8,0.40759]
[1726799733475,0.40756,2453.0,2452.8,0.40759]
[1726799736770,0.40757,2453.0,2452.7,1.2382]
[1726799737159,6.79537,2453.0,2452.7,1.2382]
[1726799737565,6.79537,2453.0,2452.8,0.40759]
[1726799738569,0.40758,2452.9,2452.7,0.4126]
[1726799738768,0.40758,2452.9,2452.7,0.8202]
[1726799740775,6.79537,2453.0,2452.7,0.8202]
[1726799740966,6.3878,2453.0,2452.8,0.40759]
[1726799741173,3.58756,2453.0,2452.8,0.40759]
[1726799741373,1.65605,2453.1,2452.9,0.40757]
[1726799742071,3.18,2453.2,2452.7,1.48200119]
[1726799742274,0.82171,2453.3,2453.1,0.40753]
[1726799742976,0.4142,2453.3,2453.2,0.40752]
[1726799744177,0.4142,2453.3,2453.1,0.81023]
[1726799750673,0.82171,2453.3,2453.1,0.81023]
[1726799751278,3.18,2453.2,2452.7,3.2078]
[1726799751480,0.40754,2453.1,2452.9,0.40756]
[1726799751982,3.58753,2453.2,2452.9,0.40756]
[1726799752588,3.18,2453.2,2452.9,0.40756]
[1726799752884,3.18,2453.2,2452.8,0.80618]
[1726799753081,3.2078,2452.9,2452.8,0.3986]
[1726799753282,3.2078,2452.9,2452.6,0.40761]
[1726799753283,3.61539,2452.9,2452.6,0.40761]
[1726799753584,1.6375,2452.8,2452.6,0.40761]
[1726799753983,1.63749,2452.8,2452.6,0.40761]
[1726799757788,1.63749,2452.8,2452.6,1.47701119]
[1726799759896,1.2299,2452.8,2452.6,1.47701119]
[1726799760391,0.8391,2452.8,2452.6,1.47701119]
[1726799761292,1.24669,2452.8,2452.6,1.47701119]
[1726799761488,6.557,2453.0,2452.6,1.06940119]
[1726799761694,7.37876,2453.0,2452.8,0.40758]
[1726799762088,7.37876,2453.0,2452.9,0.3967]
[1726799763191,0.8126,2453.1,2452.9,0.3967]
[1726799763192,0.81735,2453.1,2452.9,0.80427]
[1726799764495,0.4142,2453.2,2453.1,0.40754]
[1726799764884,3.5942,2453.2,2453.1,0.40754]
[1726799765483,3.5942,2453.2,2452.9,0.3967]
[1726799765795,3.5942,2453.2,2452.9,0.80427]
[1726799765796,3.18,2453.0,2452.9,0.80427]
[1726799766096,1.47,2453.0,2452.9,0.80427]
[1726799766693,4.02953,2453.2,2453.0,0.40756]
[1726799766995,1.8756,2453.3,2453.1,0.40753]
[1726799767494,1.47,2453.4,2453.3,0.40751]
[1726799767694,1.47,2453.4,2453.2,0.40752]
[1726799767900,3.2078,2453.5,2453.4,0.40749]
[1726799769298,4.6778,2453.5,2453.3,1.1865]
[1726799769496,4.6778,2453.5,2453.4,0.40749]
[1726799769998,3.2078,2453.5,2453.4,0.40749]
[1726799770209,3.9912,2453.7,2453.4,0.40749]
[1726799773704,4.39864,2453.7,2453.4,0.40749]
[1726799774407,0.40747,2453.6,2453.3,1.1865]
[1726799774711,0.40751,2453.3,2453.0,0.40755]
[1726799774909,0.7967,2453.2,2453.0,0.4056]
[1726799775297,0.7967,2453.2,2453.0,0.81316]
[1726799775806,0.7967,2453.2,2453.1,0.40754]
[1726799776004,0.4081,2453.2,2453.1,0.40754]
[1726799776515,0.4081,2453.2,2453.0,1.47500119]
[1726799776701,0.4081,2453.2,2453.0,0.81314]
[1726799777009,0.4081,2453.2,2453.0,0.4056]
[1726799777710,0.4081,2453.2,2453.1,0.40754]
[1726799778212,3.2078,2453.6,2453.2,0.40752]
[1726799778403,7.37105,2453.7,2453.4,0.40749]
[1726799778803,7.37105,2453.7,2453.4,0.80249]
[1726799779212,3.58747,2453.5,2453.3,0.40749]
[1726799779511,0.419,2453.4,2453.3,0.40749]
[1726799781115,0.8265,2453.4,2453.2,0.80252]
[1726799781315,0.419,2453.4,2453.2,0.80252]
[1726799781614,0.419,2453.4,2453.2,0.395]
[1726799781813,4.38371,2453.3,2453.1,0.40753]
[1726799782610,3.9762,2453.3,2453.1,0.40753]
[1726799782808,0.3999,2453.3,2453.2,0.40752]
[1726799784516,3.599,2453.4,2453.3,0.40751]
[1726799792920,4.00649,2453.4,2453.2,0.40751]
[1726799794117,4.00649,2453.4,2453.3,0.40751]
[1726799794922,3.599,2453.4,2453.3,0.40751]
[1726799796311,0.4206,2453.5,2453.4,0.40749]
[1726799797623,0.4206,2453.5,2453.4,0.81659]
[1726799799024,3.6006,2453.5,2453.3,0.4017]
[1726799799225,0.80129,2453.4,2453.2,0.40752]
[1726799799418,0.4184,2453.3,2453.2,0.40752]
[1726799807523,1.8638,2453.4,2453.2,0.40751]
[1726799810032,1.8638,2453.4,2453.2,1.47691119]
[1726799811124,1.8638,2453.4,2453.3,1.06940119]
[1726799811936,1.8638,2453.4,2453.3,1.47691119]
[1726799812233,3.2078,2453.6,2453.4,0.40748]
[1726799812528,3.61527,2453.6,2453.5,0.3981]
[1726799814730,0.40747,2453.6,2453.5,0.3981]
[1726799815130,2.69015,2453.7,2453.5,0.80557]
[1726799815432,2.2827,2453.7,2453.5,0.3981]
[1726799815631,0.40746,2453.6,2453.5,0.3981]
[1726799817535,0.40746,2453.6,2453.0,4.27700498]
[1726799817727,0.4205,2453.5,2453.3,0.4075]
[1726799818126,1.47,2453.4,2453.3,0.4075]
[1726799818935,0.40751,2453.3,2453.2,0.4164]
[1726799819139,1.23041,2453.3,2453.2,0.4164]
[1726799820334,0.3955,2453.3,2453.2,0.4164]
[1726799820531,0.3955,2453.3,2453.2,0.82392]
[1726799821337,0.3955,2453.3,2453.2,0.4164]
[1726799821729,1.47,2453.4,2453.2,0.82392]
[1726799823926,1.47,2453.4,2453.3,0.40751]
[1726799824129,1.47,2453.4,2453.2,0.82391]
[1726799824733,1.47,2453.4,2453.3,0.40751]
[1726799824938,1.47,2453.4,2453.2,0.4164]
[1726799825133,1.47,2453.4,2453.3,2.93603181]
[1726799825329,1.47,2453.4,2453.3,1.06920498]
[1726799825949,1.47,2453.4,2453.3,3.34358267]
[1726799827240,1.47,2453.4,2453.3,1.47671498]
[1726799827441,1.47,2453.4,2453.3,3.34357688]
[1726799827742,1.47,2453.4,2453.3,1.47671498]
[1726799828132,1.87749,2453.4,2453.3,1.06920498]
[1726799828332,1.47,2453.4,2453.3,1.47671498]
[1726799829136,1.87749,2453.4,2453.2,1.89312498]
[1726799829348,0.40751,2453.3,2453.2,1.06920498]
[1726799829539,8.30258,2453.3,2453.0,1.06920498]
[1726799829844,0.40754,2453.1,2453.0,1.06920498]
[1726799830040,0.40757,2452.9,2452.8,1.06920498]
[1726799830734,0.3888,2452.9,2452.8,1.47679498]
[1726799830930,0.3888,2452.9,2452.8,1.06920498]
[1726799831148,0.40759,2452.8,2452.7,1.06920498]
[1726799831441,0.40759,2452.8,2452.5,2.54643239]
[1726799831442,1.47,2452.8,2452.5,1.45910498]
[1726799831631,1.47,2452.6,2452.5,1.45910498]
[1726799832333,1.47,2452.6,2452.5,0.3899]
[1726799832649,1.87762,2452.6,2452.5,0.3899]
[1726799832939,2.68912,2452.6,2452.5,0.3899]
[1726799833139,2.2815,2452.6,2452.5,0.3899]
[1726799833345,2.68912,2452.6,2452.3,1.06920498]
[1726799833541,2.68912,2452.6,2452.3,0.3928]
[1726799833542,1.47,2452.4,2452.3,0.3928]
[1726799834042,3.18,2452.4,2452.3,0.3928]
[1726799834643,3.58766,2452.4,2452.1,0.4093]
[1726799834942,0.4159,2452.5,2451.8,1.06920498]
[1726799834943,3.18,2452.2,2451.8,1.06920498]
[1726799835143,3.18,2451.9,2451.8,0.425]
[1726799840959,3.58774,2451.9,2451.6,0.40778]
[1726799842445,0.40776,2451.8,2451.5,0.8091]
[1726799843249,3.58775,2451.9,2451.6,0.40779]
[1726799847351,0.40776,2451.8,2451.6,0.40779]
[1726799847754,0.79786,2451.8,2451.6,0.40779]
[1726799848961,0.79786,2451.8,2451.5,0.8091]
[1726799849653,0.3901,2451.8,2451.6,0.40779]
[1726799849854,3.18,2451.9,2451.7,0.40777]
[1726799850052,3.18,2451.9,2451.8,0.4021]
[1726799850456,3.58774,2451.9,2451.8,0.4021]
[1726799850962,3.18,2451.9,2451.8,0.4021]
[1726799851159,3.58774,2451.9,2451.8,0.4021]
[1726799852255,3.18,2451.9,2451.8,0.4021]
[1726799852458,3.58774,2451.9,2451.8,0.4021]
[1726799853656,3.18,2451.9,2451.8,0.4021]
[1726799854563,3.58774,2451.9,2451.8,0.4021]
[1726799855958,1.87774,2451.9,2451.8,0.4021]
[1726799856162,1.47,2451.9,2451.8,0.4021]
[1726799856865,1.47,2451.9,2451.8,0.80986]
[1726799860667,1.47,2452.0,2451.8,0.4021]
[1726799860869,1.47,2452.1,2451.9,0.8128]
[1726799861074,1.47,2452.0,2451.9,0.83543]
[1726799861667,1.47,2452.0,2451.9,0.40773]
[1726799861869,1.47,2452.0,2451.8,0.80985]
[1726799862075,0.40771,2452.1,2451.8,0.40775]
[1726799862076,2.2955,2451.9,2451.8,0.40775]
[1726799863971,2.2955,2451.9,2451.6,0.8425]
[1726799865571,2.2955,2451.9,2451.8,0.40776]
[1726799867373,1.47,2452.0,2451.9,0.40774]
[1726799870372,1.47,2452.0,2451.8,0.40775]
[1726799871072,0.8037,2452.2,2451.6,2.3125]
[1726799871278,0.4057,2452.2,2452.1,0.40771]
[1726799871671,2.2964,2452.3,2452.2,0.40769]
[1726799872278,2.2964,2452.3,2452.1,0.4077]
[1726799874071,0.8264,2452.3,2452.2,0.40769]
[1726799874280,3.2078,2452.6,2452.0,4.6778]
[1726799874468,3.2078,2452.6,2452.5,0.40764]
[1726799878371,3.2078,2452.6,2452.4,0.40765]
[1726799878576,3.2078,2452.6,2452.3,0.4066]
[1726799878577,1.47,2452.5,2452.3,0.4066]
[1726799878882,1.47,2452.4,2452.3,0.81427]
[1726799879088,1.8926,2452.4,2452.3,0.4066]
[1726799879473,1.8926,2452.4,2452.3,0.81427]
[1726799880779,1.47,2452.4,2452.3,0.81427]
[1726799880969,1.47,2452.5,2452.4,0.40766]
[1726799881779,1.47,2452.5,2452.3,0.81426]
[1726799884783,1.47,2452.4,2452.0,3.2078]
[1726799884982,1.47,2452.2,2452.1,0.4077]
[1726799885686,1.8777,2452.2,2452.0,0.4213]
[1726799885984,1.8777,2452.2,2451.9,0.40773]
[1726799886180,1.47,2452.0,2451.9,0.40773]
[1726799886879,1.47,2452.0,2451.9,4.48613]
[1726799887184,1.47,2452.0,2451.9,0.40773]
[1726799889478,1.47,2452.0,2451.8,0.82585]
[1726799889674,1.2027,2451.9,2451.8,0.82585]
[1726799889878,1.2027,2451.9,2451.8,0.82586]
[1726799890279,1.2027,2451.9,2451.8,0.4181]
[1726799890476,0.8068,2451.9,2451.8,0.82586]
[1726799890781,1.47,2452.0,2451.8,0.82586]
[1726799890977,1.47,2452.0,2451.8,1.24516]
[1726799892982,1.47,2452.0,2451.9,0.40774]
[1726799893382,1.2263,2452.2,2452.0,0.40772]
[1726799893383,1.47,2452.1,2452.0,0.40772]
[1726799894085,1.47,2452.1,2451.9,0.40773]
[1726799894377,1.47,2452.0,2451.9,0.40773]
[1726799894583,3.2078,2452.3,2451.8,3.2078]
[1726799894884,1.47,2452.1,2451.9,0.40774]
[1726799895084,1.47,2452.1,2452.0,0.40772]
[1726799896982,1.8846,2452.1,2452.0,0.40772]
[1726799900686,1.47,2452.1,2452.0,0.40772]
[1726799903292,0.3978,2452.4,2452.2,0.40769]
[1726799903493,0.3858,2452.5,2452.4,0.40766]
[1726799903788,1.47,2452.8,2452.6,0.40761]
[1726799903996,1.47,2452.7,2452.5,0.40763]
[1726799904292,1.47,2452.7,2452.4,0.40765]
[1726799904293,1.87761,2452.7,2452.4,0.40765]
[1726799904491,1.47,2452.5,2452.3,1.22276]
[1726799904794,0.3898,2452.4,2452.2,0.40768]
[1726799905094,1.47,2452.3,2452.1,1.47690498]
[1726799905389,1.47,2452.3,2452.2,0.40769]
[1726799906295,1.47,2452.3,2452.1,1.06920498]
[1726799907095,2.2704,2452.4,2452.1,1.06920498]
[1726799907284,0.3898,2452.4,2452.3,0.40767]
[1726799911704,3.5679,2452.7,2452.0,4.69170498]
[1726799911899,3.5679,2452.7,2452.5,0.40764]
[1726799911900,3.9766,2452.7,2452.5,0.40764]
[1726799912506,3.9766,2452.7,2452.6,0.3884]
[1726799912696,4.38421,2452.7,2452.6,0.3884]
[1726799912896,3.99631,2452.7,2452.6,0.3884]
[1726799913195,3.5887,2452.7,2452.6,0.3884]
[1726799914905,3.18,2452.7,2452.6,0.79602]
[1726799917812,0.4149,2453.0,2452.9,0.40757]
[1726799918112,0.4149,2453.0,2452.6,1.45760498]
[1726799918309,0.4149,2453.0,2452.9,0.40757]
[1726799919915,0.4222,2453.2,2453.1,0.40754]
[1726799920108,0.4032,2453.3,2453.2,0.40752]
[1726799921818,3.2078,2453.6,2452.9,2.26350498]
[1726799922116,3.2078,2453.6,2453.5,0.40747]
[1726799925815,42.83599,2455.2,2453.5,4.076]
[1726799925816,7.301,2454.2,2453.5,4.076]
[1726799926023,0.392,2454.1,2453.8,0.40742]
[1726799926503,0.79938,2454.1,2453.7,0.40743]
[1726799926706,0.392,2454.1,2453.7,0.40743]
[1726799926910,0.392,2454.1,2453.8,0.40742]
[1726799927312,0.392,2454.1,2453.9,0.40741]
[1726799927511,0.392,2454.1,2454.0,0.3957]
[1726799929820,0.392,2454.1,2454.0,0.80309]
[1726799930519,3.5844,2454.2,2454.0,0.80309]
[1726799931023,0.4044,2454.2,2454.0,0.80309]
[1726799931210,0.4044,2454.2,2454.0,0.3957]
[1726799931411,0.4044,2454.2,2454.0,0.80308]
[1726799932919,0.4044,2454.2,2454.0,0.3957]
[1726799933120,3.5844,2454.2,2454.0,0.3957]
[1726799933315,3.99177,2454.2,2454.0,0.3957]
[1726799933923,3.99177,2454.2,2453.9,0.4074]
[1726799935027,0.4019,2454.1,2453.9,0.4074]
[1726799935218,0.4135,2454.0,2453.9,0.4074]
[1726799941532,0.4044,2454.2,2453.7,0.4034]
[1726799941839,0.4044,2454.2,2454.0,0.40738]
[1726799942034,0.4044,2454.2,2454.1,0.4128]
[1726799943035,0.4044,2454.2,2454.1,0.82017]
[1726799952339,6.9664,2454.4,2454.2,0.40735]
[1726799952548,3.6314,2454.4,2454.2,1.18955]
[1726799952748,3.6314,2454.4,2454.2,0.7822]
[1726799952946,3.6314,2454.4,2454.2,1.18954]
[1726799953149,3.2078,2454.4,2454.3,0.40734]
[1726799953446,2.2858,2454.6,2454.4,0.40732]
[1726799953643,2.2858,2454.6,2454.5,0.4122]
[1726799954040,2.69309,2454.6,2454.5,0.4122]
[1726799954638,2.2858,2454.6,2454.5,0.4122]
[1726799955037,1.8709,2454.6,2454.5,0.4122]
[1726799955456,2.27819,2454.6,2454.5,0.4122]
[1726799956947,1.8709,2454.6,2454.2,0.7822]
[1726799957154,1.47,2454.5,2454.3,0.81283]
[1726799962955,1.8709,2454.6,2454.4,0.40732]
[1726799963250,2.27819,2454.6,2454.4,0.40732]
[1726799964655,0.4009,2454.6,2454.4,0.40732]
[1726799964855,0.4009,2454.6,2454.5,0.40731]
[1726799965249,0.4053,2454.7,2454.6,0.40729]
[1726799965450,3.2078,2454.8,2454.7,0.40727]
[1726799966557,0.4209,2455.1,2455.0,0.40723]
[1726799966758,7.3288,2455.2,2455.0,1.87723]
[1726799966759,3.6196,2455.2,2455.0,1.87723]
[1726799966956,0.4209,2455.4,2455.2,0.40718]
[1726799967156,0.4209,2455.4,2455.2,1.87718]
[1726799967350,0.4209,2455.4,2455.3,0.4081]
[1726799968057,7.76853919,2455.4,2454.8,0.7985]
[1726799968251,0.40718,2455.3,2455.0,0.81632]
[1726799968448,0.4118,2455.2,2455.0,0.81632]
[1726799968653,0.8114,2455.2,2455.0,0.81632]
[1726799968851,0.8114,2455.2,2455.0,0.4091]
[1726799969051,0.40722,2455.1,2454.8,0.81376]
[1726799969259,0.40721,2455.1,2454.7,0.81637]
[1726799969662,0.40721,2455.1,2454.8,0.40726]
[1726799970665,1.2186,2455.2,2454.9,0.40724]
[1726799971163,0.8114,2455.2,2455.0,0.40722]
[1726799972364,3.6287,2455.4,2455.2,0.40718]
[1726799972766,3.6287,2455.4,2455.3,0.40718]
[1726799973064,3.6287,2455.4,2455.2,0.81428]
[1726799973662,0.4209,2455.4,2455.1,0.4223]
[1726799973861,4.03587,2455.4,2455.1,0.8295]
[1726799976265,3.18,2455.3,2454.5,3.18]
[1726799976457,4.64664,2455.4,2454.5,1.2305]
[1726799976458,6.3878,2455.1,2454.5,1.2305]
[1726799976661,0.83073,2455.0,2454.8,0.40726]
[1726799976971,0.4005,2454.9,2454.8,0.40726]
[1726799977168,0.8198,2454.9,2454.8,0.40726]
[1726799978459,0.8198,2454.9,2454.7,0.40727]
[1726799978771,0.8198,2454.9,2454.5,1.2305]
[1726799979075,0.8198,2454.9,2454.7,0.40726]
[1726799979774,0.4005,2454.9,2454.8,0.40726]
[1726799981773,0.4005,2454.9,2454.7,0.40726]
[1726799981973,3.2078,2454.8,2454.5,4.4105]
[1726799982174,3.2078,2454.8,2454.7,0.40727]
[1726799982674,3.2078,2454.8,2454.5,1.6378]
[1726799982872,3.2078,2454.8,2454.5,1.2305]
[1726799983074,3.2078,2454.8,2454.5,1.6378]
[1726799986381,3.2078,2454.8,2454.6,0.40728]
[1726799987584,3.2078,2454.8,2454.5,1.6378]
[1726799988090,3.61506,2454.8,2454.5,1.2444]
[1726799988286,3.61506,2454.8,2454.5,0.8371]
[1726799988487,3.61506,2454.8,2454.5,0.4269]
[1726799988792,3.2078,2454.8,2454.5,0.8342]
[1726799989280,3.61507,2454.8,2454.5,0.4269]
[1726799989892,3.61507,2454.8,2454.5,0.8342]
[1726799990182,3.2078,2454.8,2454.5,0.8342]
[1726799990983,3.2078,2454.8,2454.6,0.40729]
[1726800001086,3.2078,2454.8,2454.2,3.2078]
[1726800001286,0.40728,2454.7,2454.4,0.40731]
[1726800001483,3.2078,2454.8,2454.3,0.3945]
[1726800001793,0.8016,2454.9,2454.8,0.40726]
[1726800002392,0.8016,2454.9,2454.6,1.2098]
[1726800002584,0.8016,2454.9,2454.7,0.40727]
[1726800002980,0.8016,2454.9,2454.8,0.40726]
[1726800003188,0.8016,2454.9,2454.7,0.40726]
[1726800003791,0.3972,2454.8,2454.7,0.40726]
[1726800004896,0.8016,2454.9,2454.7,0.40726]
[1726800006593,1.20884,2454.9,2454.7,0.40726]
[1726800006998,0.8016,2454.9,2454.7,0.40726]
[1726800007189,0.8016,2454.9,2454.7,0.40727]
[1726800007190,1.20885,2454.9,2454.7,0.40727]
[1726800007396,1.20885,2454.9,2454.6,1.2098]
[1726800007698,1.20885,2454.9,2454.6,0.4183]
[1726800008000,0.8016,2454.9,2454.8,0.40726]
[1726800009999,1.20884,2454.9,2454.7,0.40726]
[1726800010204,0.8016,2454.9,2454.7,0.40726]
[1726800011998,1.20884,2454.9,2454.7,0.40727]
[1726800013706,1.20884,2454.9,2454.6,0.82559]
[1726800013707,3.61507,2454.8,2454.6,0.82559]
[1726800013908,4.6778,2454.8,2454.4,0.399]
[1726800014111,4.6778,2454.8,2454.5,0.4073]
[1726800014112,0.79708,2454.7,2454.5,0.4073]
[1726800014306,0.79708,2454.7,2454.4,0.8214]
[1726800014307,0.3898,2454.7,2454.4,2.2914]
[1726800014511,0.3898,2454.7,2454.6,0.40729]
[1726800016109,3.2078,2454.8,2454.7,0.40727]
[1726800020218,1.20885,2454.9,2454.8,0.40726]
[1726800020219,0.8016,2454.9,2454.8,0.40726]
[1726800020415,0.4011,2454.9,2454.8,0.40726]
[1726800020605,6.9322,2455.1,2454.9,0.40723]
[1726800020918,7.33941,2455.1,2454.9,0.40723]
[1726800021219,7.33941,2455.1,2455.0,0.4032]
[1726800021611,11.41301,2455.1,2455.0,0.4032]
[1726800021811,7.33941,2455.1,2455.0,0.4032]
[1726800022414,6.9322,2455.1,2455.0,0.4032]
[1726800023020,7.33941,2455.1,2455.0,0.4032]
[1726800023716,4.02041,2455.1,2455.0,0.4032]
[1726800023916,8.09401,2455.1,2455.0,0.4032]
[1726800024615,8.09401,2455.1,2454.8,0.40725]
[1726800024616,0.40723,2455.0,2454.8,0.40725]
[1726800025021,0.3946,2454.9,2454.8,0.40725]
[1726800026221,0.40723,2455.0,2454.8,0.40725]
[1726800026714,0.40723,2455.0,2454.9,0.4214]
[1726800030424,0.40723,2455.0,2454.9,0.82864]
[1726800030630,3.6132,2455.1,2455.0,0.40723]
[1726800030921,3.2078,2455.1,2455.0,0.40723]
[1726800031117,3.2078,2455.1,2455.0,1.47643498]
[1726800031316,3.2078,2455.4,2455.3,0.40718]
[1726800031513,4.5112,2455.7,2455.5,0.40713]
[1726800031714,4.5112,2455.7,2455.4,0.405]
[1726800031715,0.79731,2455.7,2455.6,0.4192]
[1726800031915,0.79731,2455.7,2455.4,0.405]
[1726800032119,0.79731,2455.7,2455.3,1.48731249]
[1726800032120,0.3902,2455.7,2455.3,1.48731249]
[1726800032324,3.2078,2455.5,2455.3,0.4192]
[1726800032521,0.385,2455.4,2455.0,1.06811249]
[1726800032821,1.60617,2455.4,2455.1,0.4072]
[1726800033323,1.199,2455.4,2455.0,1.90321249]
[1726800033520,1.199,2455.4,2455.0,0.8351]
[1726800033827,0.40718,2455.3,2455.0,1.24232]
[1726800034321,1.199,2455.4,2455.0,0.8351]
[1726800034522,1.199,2455.4,2455.1,0.3999]
[1726800034719,1.60616,2455.4,2455.1,0.8071]
[1726800034917,0.40718,2455.3,2455.1,0.3999]
[1726800036429,1.60617,2455.4,2455.1,0.8071]
[1726800037223,1.199,2455.4,2455.0,0.4192]
[1726800037419,0.4072,2455.2,2455.0,0.4192]
[1726800037730,0.4072,2455.2,2454.9,3.61504]
[1726800037932,0.4126,2455.1,2454.9,3.61504]
[1726800038641,0.4126,2455.1,2455.0,0.40723]
[1726800040526,0.4126,2455.1,2455.0,0.83323]
[1726800041730,0.4126,2455.1,2454.7,0.4027]
[1726800041933,0.4126,2455.1,2454.5,3.2078]
[1726800041934,0.40728,2454.7,2454.5,3.2078]
[1726800042134,0.81899,2454.6,2454.5,3.2078]
[1726800042331,1.2273,2454.6,2454.5,3.2078]
[1726800042535,1.2273,2454.6,2454.4,0.8037]
[1726800042736,1.6346,2454.6,2454.4,0.8037]
[1726800043032,1.6346,2454.6,2454.4,1.21102]
[1726800043940,1.6346,2454.6,2454.4,0.8037]
[1726800047637,1.2273,2454.6,2454.4,1.21102]
[1726800048031,1.2273,2454.6,2454.5,0.40731]
[1726800048630,0.8195,2454.6,2454.5,0.40731]
[1726800049226,0.8195,2454.6,2454.4,1.21102]
[1726800049634,0.8195,2454.6,2454.5,0.40731]
[1726800050336,0.8195,2454.6,2454.4,1.21102]
[1726800050538,0.8195,2454.6,2454.5,0.40731]
[1726800051635,0.8195,2454.6,2454.4,1.21101]
[1726800051940,0.8195,2454.6,2454.5,0.40731]
[1726800052436,0.4117,2454.6,2454.5,0.40731]
[1726800054930,0.4117,2454.6,2454.4,0.8037]
[1726800055440,0.4117,2454.6,2454.2,0.40735]
[1726800055441,0.40732,2454.5,2454.2,0.40735]
[1726800055643,0.80282,2454.5,2454.3,0.40734]
[1726800055837,0.80282,2454.5,2454.2,0.7989]
[1726800055838,0.80282,2454.5,2454.2,1.20625]
[1726800056141,0.80282,2454.5,2454.3,0.40734]
[1726800057044,0.3955,2454.5,2454.4,0.40732]
[1726800057233,0.4117,2454.6,2454.5,0.40731]
[1726800060042,0.4117,2454.6,2454.2,3.9789]
[1726800060246,0.819,2454.6,2454.4,0.40732]
[1726800060949,4.11677,2454.8,2454.2,3.9789]
[1726800061136,4.11677,2454.8,2454.5,0.4073]
[1726800061341,4.11677,2454.8,2454.6,1.2426]
[1726800061945,0.40727,2454.7,2454.6,1.2426]
[1726800063146,3.7095,2454.8,2454.6,1.2426]
[1726800063347,0.40727,2454.7,2454.6,1.2426]
[1726800063546,4.11677,2454.8,2454.6,1.2426]
[1726800064855,4.11677,2454.8,2454.6,1.64988]
[1726800065246,3.7095,2454.8,2454.6,1.64988]
[1726800065548,4.11677,2454.8,2454.6,1.2426]
[1726800065849,0.80277,2454.8,2454.6,1.2426]
[1726800067452,0.40727,2454.7,2454.6,0.8343]
[1726800067653,0.40727,2454.7,2454.4,0.40732]
[1726800067853,0.812,2454.6,2454.3,1.2224]
[1726800068046,0.812,2454.6,2454.5,0.40731]
[1726800076452,1.21929,2454.6,2454.5,0.40731]
[1726800076755,0.812,2454.6,2454.5,0.40731]
[1726800077654,1.21929,2454.6,2454.5,0.40731]
[1726800077957,0.812,2454.6,2454.5,0.40731]
[1726800080053,1.8655,2454.8,2454.3,1.2224]
[1726800080054,0.80277,2454.8,2454.6,0.40728]
[1726800080261,3.6115,2454.9,2454.7,0.81027]
[1726800080447,1.2133,2455.2,2454.8,0.3912]
[1726800080647,0.3872,2455.2,2455.1,0.40721]
[1726800080853,6.92497,2455.4,2455.0,1.47]
[1726800081047,0.40718,2455.3,2455.1,1.2301]
[1726800081655,0.40719,2455.2,2455.1,0.8229]
[1726800082158,1.47,2455.2,2454.9,0.40723]
[1726800082360,1.63642,2455.1,2454.9,0.82663]
[1726800082561,1.63641,2455.1,2454.9,0.82663]
[1726800082855,1.2292,2455.1,2455.0,0.40723]
[1726800083454,1.63641,2455.1,2454.9,0.4194]
[1726800083850,1.2292,2455.1,2455.0,0.40723]
[1726800085653,1.63641,2455.1,2455.0,0.40723]
[1726800086053,1.63641,2455.1,2454.9,0.82663]
[1726800091655,1.2292,2455.1,2455.0,0.40723]
[1726800092154,1.63641,2455.1,2454.9,0.82663]